fUSD/lending_fUSD_20240121
["ID","MTS","AMOUNT","RATE_DAILY","PERIOD"]
[312424920,1705870248044,-766.23,0.00041095,31]
[312424921,1705870248055,-500.0,0.00041095,31]
[312424922,1705870248064,-500.0,0.00041095,31]
[312424923,1705870248074,-764.84,0.00041095,31]
[312424924,1705870248083,-509.77074247,0.00041095,31]
[312424925,1705870248092,-900.73,0.00041095,31]
[312424926,1705870248101,-516.1029636,0.00041095,31]
[312424927,1705870248110,-500.0,0.00041095,31]
[312424928,1705870248121,-1245.87,0.00041095,31]
[312424929,1705870248130,-500.0,0.00041095,31]
[312424930,1705870248139,-231.69599217,0.00041095,31]
[312424931,1705870248149,-634.23,0.00041095,31]
[312424932,1705870248158,-500.0,0.00041095,31]
[312424933,1705870248167,-500.0,0.00041095,31]
[312424934,1705870248176,-673.04,0.00041095,31]
[312424935,1705870248185,-500.0,0.00041095,31]
[312424936,1705870248194,-500.0,0.00041095,2]
[312424937,1705870248203,-521.10221916,0.00041095,31]
[312424938,1705870248213,-500.0,0.00041095,31]
[312424939,1705870248222,-500.0,0.00041095,31]
[312424940,1705870248231,-500.0,0.00041095,31]
[312424941,1705870248240,-500.0,0.00041095,31]
[312424942,1705870248249,-500.0,0.00041095,31]
[312424943,1705870248258,-500.0,0.00041095,31]
[312424944,1705870248267,-832.97,0.00041095,31]
[312424945,1705870248277,-500.0,0.00041095,31]
[312424946,1705870248286,-500.0,0.00041095,31]
[312424947,1705870248295,-500.0,0.00041095,31]
[312424948,1705870248304,-524.15,0.00041095,31]
[312424949,1705870248313,-500.0,0.00041095,31]
[312424950,1705870248322,-500.0,0.00041095,7]
[312424951,1705870248331,-500.0,0.00041095,7]
[312424952,1705870248341,-500.0,0.00041095,31]
[312424953,1705870248350,-501.68696058,0.00041095,31]
[312424954,1705870248359,-820.29,0.00041095,31]
[312424955,1705870248368,-637.44,0.00041095,31]
[312424956,1705870248378,-500.0,0.00041095,31]
[312424957,1705870248387,-500.0,0.00041095,31]
[312424958,1705870248397,-628.51,0.00041095,31]
[312424959,1705870248406,-500.0,0.00041095,31]
[312424960,1705870248416,-500.0,0.00041095,31]
[312424961,1705870248425,-560.62,0.00041095,31]
[312424962,1705870248434,-737.97,0.00041095,31]
[312424963,1705870248443,-500.0,0.00041095,31]
[312424964,1705870248452,-500.0,0.00041095,31]
[312424965,1705870248461,-500.0,0.00041095,31]
[312424966,1705870248470,-500.0,0.00041095,31]
[312424967,1705870248479,-500.0,0.00041095,31]
[312424968,1705870248488,-500.0,0.00041095,31]
[312424969,1705870248498,-502.27195008,0.00041095,31]
[312424970,1705870248507,-500.0,0.00041095,31]
[312424971,1705870248516,-500.0,0.00041095,31]
[312424972,1705870248525,-500.0,0.00041095,31]
[312424973,1705870248534,-1859.56,0.00041095,7]
[312424974,1705870248543,-1367.84,0.00041095,31]
[312424975,1705870248552,-861.26,0.00041095,31]
[312424976,1705870248561,-500.0,0.00041095,31]
[312424977,1705870248571,-500.0,0.00041095,31]
[312424978,1705870248580,-500.0,0.00041095,31]
[312424979,1705870248589,-500.0,0.00041095,31]
[312424980,1705870248598,-796.03,0.00041095,31]
[312424981,1705870248607,-500.0,0.00041095,31]
[312424982,1705870248616,-1369.41,0.00041095,7]
[312424983,1705870248626,-226.10205596,0.00041095,31]
[312424984,1705870248635,-564.23,0.00041095,31]
[312424985,1705870248644,-688.84,0.00041095,31]
[312424986,1705870248654,-500.0,0.00041095,31]
[312424987,1705870248662,-500.0,0.00041095,31]
[312424988,1705870248671,-1294.65,0.00041095,31]
[312424989,1705870248680,-500.0,0.00041095,31]
[312424990,1705870248689,-525.89,0.00041095,31]
[312424991,1705870248698,-500.0,0.00041095,31]
[312424992,1705870248707,-1167.81,0.00041095,31]
[312424993,1705870248716,-1106.26,0.00041095,2]
[312424994,1705870248725,-500.0,0.00041095,31]
[312424995,1705870248734,-1064.23,0.00041095,31]
[312424996,1705870248743,-451.27,0.00041095,31]
[312424997,1705870248753,-603.16,0.00041095,31]
[312424998,1705870248762,-869.51,0.00041095,31]
[312424999,1705870248771,-788.25,0.00041095,31]
[312425000,1705870248780,-505.42930319,0.00041095,31]
[312425001,1705870248789,-500.0,0.00041095,31]
[312425002,1705870248798,-500.0,0.00041095,31]
[312425003,1705870248807,-914.4,0.00041095,31]
[312425004,1705870248816,-500.0,0.00041095,31]
[312425005,1705870248826,-500.0,0.00041095,31]
[312425006,1705870248835,-506.37007977,0.00041095,31]
[312425007,1705870248844,-500.0,0.00041095,31]
[312425008,1705870248852,-514.59835669,0.00041095,31]
[312425009,1705870248862,-500.0,0.00041095,31]
[312425010,1705870248871,-500.0,0.00041095,31]
[312425011,1705870248880,-1233.51,0.00041095,31]
[312425012,1705870248888,-500.0,0.00041095,31]
[312425013,1705870248898,-500.0,0.00041095,31]
[312425014,1705870248907,-943.8,0.00041095,31]
[312425015,1705870248916,-500.0,0.00041095,31]
[312425016,1705870248925,-500.0,0.00041095,31]
[312425017,1705870248935,-500.0,0.00041095,31]
[312425018,1705870248944,-500.0,0.00041095,31]
[312425019,1705870248954,-500.0,0.00041095,31]
[312425020,1705870248967,-500.0,0.00041095,31]
[312425021,1705870248977,-500.0,0.00041095,31]
[312425022,1705870248986,-500.0,0.00041095,31]
[312425023,1705870248995,-500.0,0.00041095,31]
[312425024,1705870249005,-932.28,0.00041095,31]
[312425025,1705870249014,-1119.91,0.00041095,31]
[312425026,1705870249023,-500.0,0.00041095,31]
[312425027,1705870249034,-989.47,0.00041095,31]
[312425028,1705870249043,-500.0,0.00041095,31]
[312425029,1705870249052,-500.0,0.00041095,31]
[312425030,1705870249061,-500.0,0.00041095,31]
[312425031,1705870249070,-507.59462129,0.00041095,31]
[312425032,1705870249079,-500.0,0.00041095,31]
[312425033,1705870249090,-500.0,0.00041095,31]
[312425034,1705870249099,-500.0,0.00041095,31]
[312425035,1705870249107,-500.0,0.00041095,31]
[312425036,1705870249116,-927.81,0.00041095,31]
[312425037,1705870249127,-500.0,0.00041095,31]
[312425038,1705870249136,-505.83,0.00041095,31]
[312425039,1705870249144,-500.0,0.00041095,31]
[312425040,1705870249153,-848.05,0.00041095,31]
[312425041,1705870249162,-517.8,0.00041095,31]
[312425042,1705870249171,-603.87082823,0.00041095,31]
[312425043,1705870249180,-626.4,0.00041095,31]
[312425044,1705870249189,-1462.67,0.00041095,31]
[312425045,1705870249198,-828.9,0.00041095,31]
[312425046,1705870249206,-545.56,0.00041095,31]
[312425047,1705870249215,-500.0,0.00041095,31]
[312425048,1705870249225,-500.0,0.00041095,31]
[312425049,1705870249234,-500.0,0.00041095,31]
[312425050,1705870249243,-500.0,0.00041095,31]
[312425051,1705870249251,-554.46,0.00041095,31]
[312425052,1705870249261,-500.0,0.00041095,31]
[312425053,1705870249270,-500.0,0.00041095,31]
[312425054,1705870249280,-508.21015734,0.00041095,31]
[312425055,1705870249289,-500.0,0.00041095,31]
[312425056,1705870249299,-500.0,0.00041095,31]
[312425057,1705870249308,-500.0,0.00041095,31]
[312425058,1705870249317,-553.23,0.00041095,31]
[312425059,1705870249327,-381.57487848,0.00041095,31]
[312425060,1705870249335,-580.58,0.00041095,31]
[312425061,1705870249345,-1091.21,0.00041095,31]
[312425062,1705870249354,-500.0,0.00041095,31]
[312425063,1705870249363,-500.0,0.00041095,31]
[312425064,1705870249372,-676.21,0.00041095,31]
[312425065,1705870249380,-500.0,0.00041095,31]
[312425066,1705870249389,-500.0,0.00041095,31]
[312425067,1705870249398,-830.42,0.00041095,31]
[312425068,1705870249407,-500.0,0.00041095,31]
[312425069,1705870249417,-500.0,0.00041095,31]
[312425070,1705870249426,-973.22,0.00041095,31]
[312425071,1705870249435,-500.0,0.00041095,31]
[312425072,1705870249443,-957.53,0.00041095,31]
[312425073,1705870249452,-500.0,0.00041095,31]
[312425074,1705870249462,-500.0,0.00041095,31]
[312425075,1705870249471,-403.69141659,0.00041095,31]
[312425076,1705870249479,-500.0,0.00041095,31]
[312425077,1705870249488,-500.0,0.00041095,31]
[312425078,1705870249498,-500.0,0.00041095,31]
[312425079,1705870249507,-725.13,0.00041095,31]
[312425080,1705870249516,-500.0,0.00041095,31]
[312425081,1705870249526,-500.0,0.00041095,31]
[312425082,1705870249535,-500.0,0.00041095,31]
[312425083,1705870249544,-500.0,0.00041095,31]
[312425084,1705870249554,-500.0,0.00041095,31]
[312425085,1705870249563,-206.52,0.00041095,31]
[312425086,1705870249572,-609.97,0.00041095,31]
[312425087,1705870249582,-500.0,0.00041095,31]
[312425088,1705870249591,-500.0,0.00041095,31]
[312425089,1705870249600,-500.0,0.00041095,31]
[312425090,1705870249609,-478.1023633,0.00041095,31]
[312425091,1705870249618,-500.0,0.00041095,31]
[312425092,1705870249628,-500.0,0.00041095,31]
[312425093,1705870249637,-1082.23,0.00041095,31]
[312425094,1705870249646,-500.0,0.00041095,31]
[312425095,1705870249655,-1164.54,0.00041095,31]
[312425096,1705870249664,-500.0,0.00041095,31]
[312425097,1705870249673,-500.0,0.00041095,31]
[312425098,1705870249683,-1276.61,0.00041095,31]
[312425099,1705870249693,-596.43,0.00041095,31]
[312425100,1705870249702,-1285.35,0.00041095,31]
[312425101,1705870249711,-500.0,0.00041095,31]
[312425102,1705870249721,-503.24113477,0.00041095,31]
[312425103,1705870249730,-500.0,0.00041095,31]
[312425104,1705870249739,-1889.54,0.00041095,31]
[312425105,1705870249748,-500.0,0.00041095,31]
[312425106,1705870249758,-500.0,0.00041095,31]
[312425107,1705870249766,-504.46,0.00041095,31]
[312425108,1705870249775,-500.0,0.00041095,31]
[312425109,1705870249785,-807.35,0.00041095,31]
[312425110,1705870249794,-1080.09,0.00041095,31]
[312425111,1705870249803,-581.24,0.00041095,31]
[312425112,1705870249813,-500.0,0.00041095,10]
[312425113,1705870249823,-500.0,0.00041095,31]
[312425114,1705870249832,-556.31,0.00041095,31]
[312425115,1705870249842,-500.0,0.00041095,31]
[312425116,1705870249852,-500.0,0.00041095,31]
[312425117,1705870249862,-500.0,0.00041095,31]
[312425118,1705870249872,-500.0,0.00041095,31]
[312425119,1705870249881,-500.0,0.00041095,31]
[312425120,1705870249890,-500.0,0.00041095,31]
[312425121,1705870249900,-500.0,0.00041095,31]
[312425122,1705870249909,-509.69269628,0.00041095,31]
[312425123,1705870249918,-506.35420833,0.00041095,31]
[312425124,1705870249927,-1040.4,0.00041095,31]
[312425125,1705870249937,-267.27484838,0.00041095,31]
[312425126,1705870249946,-500.0,0.00041095,31]
[312425127,1705870249956,-243.61251438,0.00041095,31]
[312425128,1705870249965,-500.0,0.00041095,31]
[312425129,1705870249979,-500.0,0.00041095,31]
[312425130,1705870249988,-329.08,0.00041095,31]
[312425131,1705870249997,-500.0,0.00041095,31]
[312425132,1705870250007,-500.0,0.00041095,31]
[312425133,1705870250016,-500.0,0.00041095,31]
[312425134,1705870250026,-500.0,0.00041095,31]
[312425135,1705870250036,-609.99,0.00041095,31]
[312425136,1705870250047,-667.03,0.00041095,31]
[312425137,1705870250058,-175.1107294,0.00041095,31]
[312425138,1705870250068,-512.7098136,0.00041095,31]
[312425139,1705870250078,-635.19,0.00041095,31]
[312425140,1705870250087,-500.0,0.00041095,31]
[312425141,1705870250097,-500.0,0.00041095,31]
[312425142,1705870250106,-500.0,0.00041095,31]
[312425143,1705870250116,-1114.61,0.00041095,31]
[312425144,1705870250126,-500.0,0.00041095,31]
[312425145,1705870250135,-500.0,0.00041095,31]
[312425146,1705870250144,-500.0,0.00041095,31]
[312425147,1705870250154,-500.0,0.00041095,31]
[312425148,1705870250164,-1209.9,0.00041095,31]
[312425149,1705870250173,-904.83,0.00041095,31]
[312425150,1705870250183,-500.0,0.00041095,31]
[312425151,1705870250192,-500.0,0.00041095,31]
[312425152,1705870250202,-5488.24,0.00041095,31]
[312425153,1705870250211,-500.0,0.00041095,31]
[312425154,1705870250220,-709.79,0.00041095,31]
[312425155,1705870250230,-589.43,0.00041095,31]
[312425156,1705870250239,-735.58,0.00041095,31]
[312425157,1705870250248,-500.0,0.00041095,31]
[312425158,1705870250257,-500.0,0.00041095,31]
[312425159,1705870250267,-500.0,0.00041095,31]
[312425160,1705870250277,-500.0,0.00041095,31]
[312425161,1705870250286,-500.0,0.00041095,31]
[312425162,1705870250297,-502.23730279,0.00041095,31]
[312425163,1705870250306,-519.74,0.00041095,31]
[312425164,1705870250317,-568.11,0.00041095,31]
[312425165,1705870250327,-764.25,0.00041095,31]
[312425166,1705870250336,-1130.84,0.00041095,31]
[312425167,1705870250347,-535.34,0.00041095,31]
[312425168,1705870250357,-500.0,0.00041095,31]
[312425169,1705870250366,-500.0,0.00041095,31]
[312425170,1705870250377,-500.0,0.00041095,31]
[312425171,1705870250386,-500.0,0.00041095,31]
[312425172,1705870250395,-500.0,0.00041095,31]
[312425173,1705870250404,-500.0,0.00041095,31]
[312425174,1705870250414,-1498.71,0.00041095,31]
[312425175,1705870250423,-500.0,0.00041095,31]
[312425176,1705870250432,-1158.24,0.00041095,31]
[312425177,1705870250441,-500.0,0.00041095,31]
[312425178,1705870250451,-4751.71,0.00041095,31]
[312425179,1705870250460,-500.0,0.00041095,31]
[312425180,1705870250470,-500.0,0.00041095,31]
[312425181,1705870250479,-500.0,0.00041095,31]
[312425182,1705870250488,-624.43,0.00041095,31]
[312425183,1705870250498,-511.19727071,0.00041095,31]
[312425184,1705870250507,-580.26,0.00041095,31]
[312425185,1705870250516,-503.49,0.00041095,31]
[312425186,1705870250525,-500.0,0.00041095,31]
[312425187,1705870250535,-500.0,0.00041095,31]
[312425188,1705870250544,-500.0,0.00041095,31]
[312425189,1705870250553,-500.0,0.00041095,31]
[312425190,1705870250562,-500.0,0.00041095,31]
[312425191,1705870250572,-500.0,0.00041095,31]
[312425192,1705870250582,-10825.37,0.00041095,31]
[312425193,1705870250591,-500.0,0.00041095,31]
[312425194,1705870250600,-500.0,0.00041095,31]
[312425195,1705870250609,-1841.83,0.00041095,31]
[312425196,1705870250618,-500.0,0.00041095,31]
[312425197,1705870250629,-300.0,0.00041095,31]
[312425198,1705870250638,-861.14,0.00041095,31]
[312425199,1705870250647,-502.66789447,0.00041095,31]
[312425200,1705870250656,-500.0,0.00041095,31]
[312425201,1705870250665,-500.0,0.00041095,31]
[312425202,1705870250675,-1378.55,0.00041095,31]
[312425203,1705870250684,-500.0,0.00041095,31]
[312425204,1705870250693,-500.0,0.00041095,31]
[312425205,1705870250702,-500.0,0.00041095,31]
[312425206,1705870250712,-500.0,0.00041095,31]
[312425207,1705870250722,-507.34442528,0.00041095,31]
[312425208,1705870250732,-538.82987996,0.00041095,31]
[312425209,1705870250741,-4524.14,0.00041095,31]
[312425210,1705870250750,-500.0,0.00041095,31]
[312425211,1705870250760,-500.0,0.00041095,31]
[312425212,1705870250769,-1000.0,0.00041095,50]
[312425213,1705870250779,-647.87268689,0.00041095,31]
[312425214,1705870250788,-500.0,0.00041095,31]
[312425215,1705870250797,-500.0,0.00041095,31]
[312425216,1705870250806,-500.0,0.00041095,31]
[312425217,1705870250816,-500.0,0.00041095,31]
[312425218,1705870250825,-1414.98,0.00041095,31]
[312425219,1705870250835,-2876.21,0.00041095,31]
[312425220,1705870250844,-1222.44,0.00041095,31]
[312425221,1705870250853,-500.0,0.00041095,31]
[312425222,1705870250863,-500.0,0.00041095,31]
[312425223,1705870250872,-1644.24,0.00041095,31]
[312425224,1705870250882,-500.0,0.00041095,31]
[312425225,1705870250891,-500.0,0.00041095,31]
[312425226,1705870250901,-500.0,0.00041095,31]
[312425227,1705870250910,-500.0,0.00041095,31]
[312425228,1705870250919,-500.0,0.00041095,31]
[312425229,1705870250929,-500.0,0.00041095,31]
[312425230,1705870250938,-500.0,0.00041095,31]
[312425231,1705870250947,-500.13,0.00041095,31]
[312425232,1705870250956,-513.5,0.00041095,31]
[312425233,1705870250969,-500.0,0.00041095,31]
[312425234,1705870250978,-500.0,0.00041095,31]
[312425235,1705870250988,-500.0,0.00041095,31]
[312425236,1705870250997,-500.0,0.00041095,31]
[312425237,1705870251006,-7895.19,0.00041095,31]
[312425238,1705870251015,-5028.21,0.00041095,31]
[312425239,1705870251025,-931.76,0.00041095,31]
[312425240,1705870251034,-969.52,0.00041095,31]
[312425241,1705870251043,-500.0,0.00041095,31]
[312425242,1705870251054,-500.0,0.00041095,31]
[312425243,1705870251064,-500.0,0.00041095,31]
[312425244,1705870251073,-1000.0,0.00041095,31]
[312425245,1705870251083,-501.15827167,0.00041095,31]
[312425246,1705870251092,-500.0,0.00041095,31]
[312425247,1705870251102,-1384.89,0.00041095,31]
[312425248,1705870251111,-500.0,0.00041095,31]
[312425249,1705870251121,-1137.66,0.00041095,31]
[312425250,1705870251131,-500.0,0.00041095,31]
[312425251,1705870251140,-500.0,0.00041095,31]
[312425252,1705870251150,-506.49945179,0.00041095,31]
[312425253,1705870251160,-824.19,0.00041095,31]
[312425254,1705870251169,-500.0,0.00041095,31]
[312425255,1705870251179,-1060.28,0.00041095,31]
[312425256,1705870251190,-11157.76,0.00041095,31]
[312425257,1705870251199,-502.51474386,0.00041095,31]
[312425258,1705870251208,-3059.97,0.00041095,31]
[312425259,1705870251218,-508.65392728,0.00041095,2]
[312425260,1705870251228,-763.53,0.00041095,31]
[312425261,1705870251238,-2691.28,0.00041095,31]
[312425262,1705870251249,-500.0,0.00041095,31]
[312425263,1705870251260,-500.0,0.00041095,31]
[312425264,1705870251270,-500.0,0.00041095,31]
[312425265,1705870251280,-2159.1,0.00041095,31]
[312425266,1705870251290,-490.79757793,0.00041095,31]
[312425267,1705870251300,-577.63,0.00041095,31]
[312425268,1705870251309,-2191.37,0.00041095,31]
[312425269,1705870251403,-500.0,0.00041095,31]
[312425270,1705870251452,-821.15,0.00041095,31]
[312425271,1705870251462,-500.0,0.00041095,31]
[312425272,1705870251473,-500.0,0.00041095,31]
[312425273,1705870251483,-500.0,0.00041095,60]
[312425274,1705870251493,-500.0,0.00041095,31]
[312425275,1705870251503,-500.0,0.00041095,31]
[312425276,1705870251513,-590.37,0.00041095,31]
[312425277,1705870251522,-500.0,0.00041095,31]
[312425278,1705870251533,-209.59680696,0.00041095,31]
[312425279,1705870251543,-10245.49,0.00041095,31]
[312425280,1705870251552,-500.0,0.00041095,31]
[312425281,1705870251562,-8519.53,0.00041095,31]
[312425282,1705870251572,-500.0,0.00041095,31]
[312425283,1705870251582,-500.0,0.00041095,31]
[312425284,1705870251591,-1411.8,0.00041095,31]
[312425285,1705870251601,-1158.54,0.00041095,31]
[312425286,1705870251611,-500.0,0.00041095,31]
[312425287,1705870251621,-500.0,0.00041095,31]
[312425288,1705870251631,-500.0,0.00041095,31]
[312425289,1705870251641,-500.0,0.00041095,31]
[312425290,1705870251651,-500.0,0.00041095,31]
[312425291,1705870251660,-656.4,0.00041095,31]
[312425292,1705870251670,-2592.98,0.00041095,31]
[312425293,1705870251679,-500.0,0.00041095,31]
[312425294,1705870251688,-1453.26,0.00041095,31]
[312425295,1705870251698,-1033.13,0.00041095,31]
[312425296,1705870251708,-500.0,0.00041095,31]
[312425297,1705870251718,-9841.58,0.00041095,31]
[312425298,1705870251728,-1868.6,0.00041095,31]
[312425299,1705870251737,-500.0,0.00041095,31]
[312425300,1705870251747,-500.0,0.00041095,31]
[312425301,1705870251757,-500.0,0.00041095,31]
[312425302,1705870251767,-500.0,0.00041095,31]
[312425303,1705870251776,-500.0,0.00041095,31]
[312425304,1705870251786,-500.0,0.00041095,31]
[312425305,1705870251796,-500.0,0.00041095,31]
[312425306,1705870251805,-500.0,0.00041095,31]
[312425307,1705870251815,-500.0,0.00041095,31]
[312425308,1705870251825,-500.0,0.00041095,31]
[312425309,1705870251834,-500.0,0.00041095,31]
[312425310,1705870251845,-892.41,0.00041095,31]
[312425311,1705870251854,-500.0,0.00041095,31]
[312425312,1705870251864,-752.49,0.00041095,31]
[312425313,1705870251874,-500.0,0.00041095,31]
[312425314,1705870251883,-899.55,0.00041095,31]
[312425315,1705870251893,-1749.1,0.00041095,31]
[312425316,1705870251903,-500.0,0.00041095,31]
[312425317,1705870251912,-948.83,0.00041095,31]
[312425318,1705870251922,-500.0,0.00041095,31]
[312425319,1705870251932,-505.49088453,0.00041095,31]
[312425320,1705870251941,-1603.55,0.00041095,31]
[312425321,1705870251951,-500.0,0.00041095,31]
[312425322,1705870251961,-500.0,0.00041095,31]
[312425323,1705870251974,-633.49,0.00041095,31]
[312425324,1705870251983,-500.0,0.00041095,31]
[312425325,1705870251993,-4429.48,0.00041095,31]
[312425326,1705870252002,-500.0,0.00041095,31]
[312425327,1705870252013,-668.22,0.00041095,31]
[312425328,1705870252023,-941.47,0.00041095,31]
[312425329,1705870252032,-5882.87,0.00041095,31]
[312425330,1705870252042,-5004.74,0.00041095,31]
[312425331,1705870252052,-500.0,0.00041095,31]
[312425332,1705870252064,-595.33,0.00041095,31]
[312425333,1705870252074,-500.0,0.00041095,31]
[312425334,1705870252083,-500.0,0.00041095,31]
[312425335,1705870252092,-1134.24,0.00041095,31]
[312425336,1705870252102,-500.0,0.00041095,31]
[312425337,1705870252111,-546.83,0.00041095,31]
[312425338,1705870252121,-500.0,0.00041095,31]
[312425339,1705870252133,-649.66,0.00041095,31]
[312425340,1705870252143,-4096.59,0.00041095,31]
[312425341,1705870252152,-500.0,0.00041095,31]
[312425342,1705870252168,-1463.18,0.00041095,31]
[312425343,1705870252177,-500.0,0.00041095,31]
[312425344,1705870252186,-569.66519339,0.00041095,31]
[312425345,1705870252195,-500.0,0.00041095,31]
[312425346,1705870252204,-2332.87,0.00041095,31]
[312425347,1705870252214,-500.0,0.00041095,31]
[312425348,1705870252224,-500.0,0.00041095,31]
[312425349,1705870252235,-27362.59,0.00041095,31]
[312425350,1705870252245,-500.0,0.00041095,31]
[312425351,1705870252255,-500.0,0.00041095,31]
[312425352,1705870252265,-1378.77,0.00041095,31]
[312425353,1705870252274,-500.0,0.00041095,31]
[312425354,1705870252284,-500.0,0.00041095,31]
[312425355,1705870252293,-921.68,0.00041095,31]
[312425356,1705870252303,-500.0,0.00041095,30]
[312425357,1705870252314,-500.0,0.00041095,31]
[312425358,1705870252324,-1000.0,0.00041095,2]
[312425359,1705870252334,-2802.75,0.00041095,31]
[312425360,1705870252344,-500.0,0.00041095,31]
[312425361,1705870252353,-500.0,0.00041095,31]
[312425362,1705870252363,-2337.4,0.00041095,31]
[312425363,1705870252373,-2796.13,0.00041095,31]
[312425364,1705870252383,-500.0,0.00041095,31]
[312425365,1705870252393,-2620.7,0.00041095,31]
[312425366,1705870252403,-500.0,0.00041095,31]
[312425367,1705870252413,-500.0,0.00041095,31]
[312425368,1705870252423,-3405.72,0.00041095,31]
[312425369,1705870252433,-3756.83,0.00041095,31]
[312425370,1705870252443,-500.0,0.00041095,31]
[312425371,1705870252454,-300.68,0.00041095,31]
[312425372,1705870252464,-500.0,0.00041095,31]
[312425373,1705870252473,-500.0,0.00041095,31]
[312425374,1705870252483,-4313.54,0.00041095,31]
[312425375,1705870252492,-847.13,0.00041095,31]
[312425376,1705870252502,-500.0,0.00041095,31]
[312425377,1705870252511,-500.0,0.00041095,31]
[312425378,1705870252521,-500.0,0.00041095,31]
[312425379,1705870252530,-500.0,0.00041095,31]
[312425380,1705870252539,-1629.98,0.00041095,31]
[312425381,1705870252549,-391.0825371,0.00041095,31]
[312425382,1705870252559,-847.17,0.00041095,31]
[312425383,1705870252568,-926.4,0.00041095,31]
[312425384,1705870252577,-1330.65,0.00041095,31]
[312425385,1705870252587,-556.07,0.00041095,31]
[312425386,1705870252596,-500.0,0.00041095,31]
[312425387,1705870252605,-3454.25,0.00041095,31]
[312425388,1705870252615,-598.64,0.00041095,31]
[312425389,1705870252625,-3227.73,0.00041095,31]
[312425390,1705870252634,-500.0,0.00041095,31]
[312425391,1705870252644,-1401.95,0.00041095,31]
[312425392,1705870252653,-500.0,0.00041095,31]
[312425393,1705870252663,-2701.1,0.00041095,31]
[312425394,1705870252672,-11421.63,0.00041095,31]
[312425395,1705870252682,-529.59,0.00041095,31]
[312425396,1705870252691,-500.0,0.00041095,31]
[312425397,1705870252700,-14628.12,0.00041095,31]
[312425398,1705870252710,-2678.53,0.00041095,31]
[312425399,1705870252719,-500.0,0.00041095,31]
[312425400,1705870252729,-500.0,0.00041095,31]
[312425401,1705870252739,-500.0,0.00041095,31]
[312425402,1705870252748,-501.3,0.00041095,31]
[312425403,1705870252757,-500.0,0.00041095,31]
[312425404,1705870252767,-2914.63,0.00041095,31]
[312425405,1705870252777,-500.0,0.00041095,31]
[312425406,1705870252787,-4883.36,0.00041095,31]
[312425407,1705870252797,-2375.88,0.00041095,31]
[312425408,1705870252807,-1360.41,0.00041095,31]
[312425409,1705870252816,-500.0,0.00041095,31]
[312425410,1705870252826,-500.0,0.00041095,31]
[312425411,1705870252836,-500.0,0.00041095,31]
[312425412,1705870252846,-508.19111201,0.00041095,31]
[312425413,1705870252855,-725.58,0.00041095,31]
[312425414,1705870252866,-2391.51,0.00041095,31]
[312425415,1705870252877,-500.0,0.00041095,31]
[312425416,1705870252887,-500.0,0.00041095,31]
[312425417,1705870252896,-1279.14,0.00041095,31]
[312425418,1705870252906,-893.08,0.00041095,31]
[312425419,1705870252916,-500.0,0.00041095,2]